Workbook

Sheet паспорт
A1: ПАТ "УКРТРАНСГАЗ" | G1: ПАСПОРТ ФІЗИКО-ХІМІЧНИХ ПОКАЗНИКІВ ПРИРОДНОГО ГАЗУ № 173
A2: Філія "УМГ "КИЇВТРАНСГАЗ" | G2: переданого Сумським ЛВУМГ та прийнятого ПАТ "Сумигаз"
A3: Сумського ЛВУМГ | G3: Маршрут № 173
A4: Вимірювальна хіміко-аналітична лабораторія
A5: Свідоцтво № РУ-0053/17 чинне до 10 травня 2022 р. | K5: по газопроводу "Єлець - Кременчук - Кривий Ріг" | V5: за період з | X5: 2017-05-01 | Z5: по | AA5: 2017-05-31
A7: Число місяця | B7: Компонентний склад, % мол. | N7: Фізико-хімічні показники газу обчислені на основі компонентного складу, 101,325 кПа | X7: Температура точки роси за вологою (Р = 3.92 МПа), °С | Y7: Температура точки роси за вуглеводнями, °С | Z7: Вміст сірководню, г/м3 | AA7: Вміст меркаптанової сірки, г/м3 | AB7: Вміст механічних домішок, г/м3
N8: Густина абсолютна, кг/м3,при 20 ºС, | O8: Температура вимірювання/згоряння при 20/25°С
B9: метан, С1 | C9: етан, С2 | D9: пропан, С3 | E9: ізо-бутан, і-С4 | F9: н-бутан, н-С4 | G9: нео-пентан, нео-С5 | H9: ізо-пентан, і-С5 | I9: н-пентан, н-С5 | J9: гексани та вищі, С6+ | K9: кисень, О2 | L9: азот, N2 | M9: діоксид вуглецю, CО2 | O9: Теплота згоряння нижча | R9: Теплота згоряння вища | U9: Число Воббе вище
O10: ккал/м3 | P10: МДж/м3 | Q10: кВт⋅год/м3 | R10: ккал/м3 | S10: МДж/м3 | T10: кВт⋅год/м3 | U10: ккал/м3 | V10: МДж/м3 | W10: кВт⋅год/м3
A11: 1 | O11: 8249.737386 | P11: 34.51 | Q11: 9.594444444 | R11: 9143.021052 | S11: 38.24 | T11: 10.63333333 | AC11: =SUM(B11:M11)+$K$42+$N$42 -> 0
A12: 2 | O12: 8249.737386 | P12: 34.51 | Q12: 9.594444444 | R12: 9143.021052 | S12: 38.24 | T12: 10.63333333 | AC12: 0
A13: 3 | B13: 95.3638 | C13: 2.647 | D13: 0.841 | E13: 0.127 | F13: 0.124 | G13: 0.0017 | H13: 0.023 | I13: 0.0168 | J13: 0.0112 | K13: 0.0045 | L13: 0.629 | M13: 0.211 | N13: 0.705 | O13: =P13*238.8459 -> 8247.348927 | P13: 34.53 | Q13: =P13/3.6 -> 9.591666667 | R13: =S13*238.8459 -> 9138.244134 | S13: 38.26 | T13: =S13/3.6 -> 10.62777778 | U13: =V13*238.8459 -> 11944.68346 | V13: 50.01 | W13: =V13/3.6 -> 13.89166667 | X13: -21.6 | AC13: 100 | AD13: =IF(AC13=100,"ОК"," ") -> ОК
A14: 4 | O14: 8247.348927 | P14: 34.53 | Q14: 9.591666667 | R14: 9138.244134 | S14: 38.26 | T14: 10.62777778 | X14: -23.2 | AC14: 0 | AD14: =IF(AC14=100,"ОК"," ") -> 
A15: 5 | O15: 8247.348927 | P15: 34.53 | Q15: 9.591666667 | R15: 9138.244134 | S15: 38.26 | T15: 10.62777778 | X15: -22.7 | AC15: 0
A16: 6 | O16: 8247.348927 | P16: 34.53 | Q16: 9.591666667 | R16: 9138.244134 | S16: 38.26 | T16: 10.62777778 | AC16: 0
A17: 7 | O17: 8247.348927 | P17: 34.53 | Q17: 9.591666667 | R17: 9138.244134 | S17: 38.26 | T17: 10.62777778 | AC17: 0
A18: 8 | O18: 8247.348927 | P18: 34.53 | Q18: 9.591666667 | R18: 9138.244134 | S18: 38.26 | T18: 10.62777778 | AC18: 0
A19: 9 | O19: 8247.348927 | P19: 34.53 | Q19: 9.591666667 | R19: 9138.244134 | S19: 38.26 | T19: 10.62777778 | AC19: 0
A20: 10 | B20: 95.3089 | C20: 2.698 | D20: 0.858 | E20: 0.128 | F20: 0.126 | G20: 0.0016 | H20: 0.0222 | I20: 0.0161 | J20: 0.0118 | K20: 0.0044 | L20: 0.607 | M20: 0.218 | N20: 0.7054 | O20: 8254.514304 | P20: 34.56 | Q20: 9.6 | R20: 9145.409511 | S20: 38.29 | T20: 10.63611111 | U20: =V20*238.8459 -> 11951.84884 | V20: 50.04 | W20: =V20/3.6 -> 13.9 | X20: -22.8 | Y20: -19.6 | Z20: 0.0001 | AA20: <0,01 | AB20: 0 | AC20: 100 | AD20: ОК
A21: 11 | O21: 8254.514304 | P21: 34.56 | Q21: 9.6 | R21: 9145.409511 | S21: 38.29 | T21: 10.63611111 | X21: -22.3 | Y21: -18.8 | AC21: 0
A22: 12 | O22: 8254.514304 | P22: 34.56 | Q22: 9.6 | R22: 9145.409511 | S22: 38.29 | T22: 10.63611111 | X22: -22.2 | Y22: -20.1 | AC22: 0
A23: 13 | O23: 8254.514304 | P23: 34.56 | Q23: 9.6 | R23: 9145.409511 | S23: 38.29 | T23: 10.63611111 | X23: -21.2 | Y23: -18.23 | AC23: 0
A24: 14 | O24: 8254.514304 | P24: 34.56 | Q24: 9.6 | R24: 9145.409511 | S24: 38.29 | T24: 10.63611111 | AC24: 0
A25: 15 | B25: 95.1963 | C25: 2.768 | D25: 0.878 | E25: 0.133 | F25: 0.13 | G25: 0.0016 | H25: 0.0245 | I25: 0.0175 | J25: 0.0128 | K25: 0.0043 | L25: 0.602 | M25: 0.232 | N25: 0.7065 | O25: 8261.679681 | P25: 34.59 | Q25: 9.608333333 | R25: 9154.963347 | S25: 38.33 | T25: 10.64722222 | U25: =V25*238.8459 -> 11954.23729 | V25: 50.05 | W25: =V25/3.6 -> 13.90277778 | X25: -22 | Y25: -18.9 | AC25: 100 | AD25: ОК
A26: 16 | O26: 8261.679681 | P26: 34.59 | Q26: 9.608333333 | R26: 9154.963347 | S26: 38.33 | T26: 10.64722222 | X26: -22 | Y26: -18.8 | AC26: 0
A27: 17 | O27: 8261.679681 | P27: 34.59 | Q27: 9.608333333 | R27: 9154.963347 | S27: 38.33 | T27: 10.64722222 | X27: -22.7 | Y27: -19.6 | AC27: 0
A28: 18 | O28: 8261.679681 | P28: 34.59 | Q28: 9.608333333 | R28: 9154.963347 | S28: 38.33 | T28: 10.64722222 | X28: -22.6 | Y28: -20.2 | AC28: 0
A29: 19 | O29: 8261.679681 | P29: 34.59 | Q29: 9.608333333 | R29: 9154.963347 | S29: 38.33 | T29: 10.64722222 | X29: -23.3 | Y29: -19.9 | AC29: 0
A30: 20 | O30: 8261.679681 | P30: 34.59 | Q30: 9.608333333 | R30: 9154.963347 | S30: 38.33 | T30: 10.64722222 | AC30: 0 | AD30: =IF(AC30=100,"ОК"," ") -> 
A31: 21 | O31: 8261.679681 | P31: 34.59 | Q31: 9.608333333 | R31: 9154.963347 | S31: 38.33 | T31: 10.64722222 | AC31: 0
A32: 22 | B32: 95.1427 | C32: 2.809 | D32: 0.895 | E32: 0.133 | F32: 0.129 | G32: 0.0017 | H32: 0.023 | I32: 0.0164 | J32: 0.0109 | K32: 0.0043 | L32: 0.603 | M32: 0.232 | N32: 0.7068 | O32: 8266.456599 | P32: 34.61 | Q32: 9.613888889 | R32: 9159.740265 | S32: 38.35 | T32: 10.65277778 | U32: =V32*238.8459 -> 11956.62575 | V32: 50.06 | W32: =V32/3.6 -> 13.90555556 | X32: -23.1 | Y32: -20.4 | AC32: 100 | AD32: ОК
A33: 23 | O33: 8266.456599 | P33: 34.61 | Q33: 9.613888889 | R33: 9159.740265 | S33: 38.35 | T33: 10.65277778 | X33: -22.3 | Y33: -19.9 | AC33: 0 | AD33: =IF(AC33=100,"ОК"," ") -> 
A34: 24 | O34: 8266.456599 | P34: 34.61 | Q34: 9.613888889 | R34: 9159.740265 | S34: 38.35 | T34: 10.65277778 | X34: -23.2 | Y34: -20.8 | AC34: 0
A35: 25 | O35: 8266.456599 | P35: 34.61 | Q35: 9.613888889 | R35: 9159.740265 | S35: 38.35 | T35: 10.65277778 | X35: -24.1 | Y35: -21.1 | AC35: 0
A36: 26 | O36: 8266.456599 | P36: 34.61 | Q36: 9.613888889 | R36: 9159.740265 | S36: 38.35 | T36: 10.65277778 | X36: -23.5 | Y36: -19.9 | AC36: 0
A37: 27 | O37: 8266.456599 | P37: 34.61 | Q37: 9.613888889 | R37: 9159.740265 | S37: 38.35 | T37: 10.65277778 | AC37: 0
A38: 28 | O38: 8266.456599 | P38: 34.61 | Q38: 9.613888889 | R38: 9159.740265 | S38: 38.35 | T38: 10.65277778 | AC38: 0
A39: 29 | B39: 95.479 | C39: 2.538 | D39: 0.846 | E39: 0.129 | F39: 0.129 | G39: 0.0017 | H39: 0.0232 | I39: 0.0165 | J39: 0.011 | K39: 0.0046 | L39: 0.627 | M39: 0.195 | N39: 0.7043 | O39: 8242.572009 | P39: 34.51 | Q39: 9.586111111 | R39: 9135.855675 | S39: 38.25 | T39: 10.625 | U39: =V39*238.8459 -> 11947.07192 | V39: 50.02 | W39: =V39/3.6 -> 13.89444444 | X39: -21.4 | Y39: -18.4 | AC39: 100
A40: 30 | O40: =P40*238.8459 -> 8242.572009 | P40: 34.51 | Q40: =P40/3.6 -> 9.586111111 | R40: =S40*238.8459 -> 9135.855675 | S40: 38.25 | T40: =S40/3.6 -> 10.625 | X40: -22 | Y40: -19.1 | AC40: 0
A41: 31 | O41: 8242.572009 | P41: 34.51 | Q41: 9.586111111 | R41: 9135.855675 | S41: 38.25 | T41: 10.625 | X41: -22.9 | Y41: -19.5 | AC41: 0
A42: Рівень одоризації відповідає чинним нормативним документам | O42: 8256.276261 | P42: 34.56606455 | Q42: 9.602049156 | R42: 9148.40994 | S42: 38.30081232 | T42: 10.63960061
H43: Середньозважене значення теплоти згоряння:
B46: Головний інженер Сумського ЛВУМГ Соловйов О.Б. 01.06.2017
C47: Керівник підрозділу підприємства, якому підпорядкована лабораторія | O47: прізвище | R47: підпис | V47: дата
B48: Завідувач ВХАЛ Журавльова В.В. 01.06.2017
C49: Лабораторія, де здійснювалось вимірювання газу | O49: прізвище | R49: підпис | V49: дата
B50: Начальник служби ГВ та М Соловйов А.І. 01.06.2017
C51: Метрологічна служба, яка вимірює обсяги газу | O51: прізвище | R51: підпис | V51: дата

Sheet розрахунок
A2: Додаток до Паспорту фізико-хімічних показників природного газу по маршруту № 173
A4: Число місяця | B4: Теплота згоряння вища, МДж/м3 | C4: Сумська область | D4: Загальний обсяг газу, м3
C5: Обсяг газу переданого за добу, м3
C6: ГРС Терешківка
A7: 1 | B7: =паспорт!S11 -> 38.24 | C7: 674.7366 | D7: =SUM(C7:C7) -> 674.7366
A8: 2 | B8: =паспорт!S12 -> 38.24 | C8: 672.479 | D8: 672.479
A9: 3 | B9: =паспорт!S13 -> 38.26 | C9: 622.1381 | D9: 622.1381
A10: 4 | B10: =паспорт!S14 -> 38.26 | C10: 710.7966 | D10: 710.7966
A11: 5 | B11: =паспорт!S15 -> 38.26 | C11: 794.4788 | D11: 794.4788
A12: 6 | B12: =паспорт!S16 -> 38.26 | C12: 788.4051 | D12: 788.4051
A13: 7 | B13: =паспорт!S17 -> 38.26 | C13: 668.1514 | D13: 668.1514
A14: 8 | B14: =паспорт!S18 -> 38.26 | C14: 789.6396 | D14: 789.6396
A15: 9 | B15: =паспорт!S19 -> 38.26 | C15: 1024.203 | D15: 1024.203
A16: 10 | B16: =паспорт!S20 -> 38.29 | C16: 1521.6407 | D16: 1521.6407
A17: 11 | B17: =паспорт!S21 -> 38.29 | C17: 1607.7732 | D17: 1607.7732
A18: 12 | B18: =паспорт!S22 -> 38.29 | C18: 1918.9789 | D18: 1918.9789
A19: 13 | B19: =паспорт!S23 -> 38.29 | C19: 2468.7556 | D19: 2468.7556
A20: 14 | B20: =паспорт!S24 -> 38.29 | C20: 1912.425 | D20: 1912.425
A21: 15 | B21: =паспорт!S25 -> 38.33 | C21: 1105.4131 | D21: 1105.4131
A22: 16 | B22: =паспорт!S26 -> 38.33 | C22: 888.2598 | D22: 888.2598
A23: 17 | B23: =паспорт!S27 -> 38.33 | C23: 1380.1185 | D23: 1380.1185
A24: 18 | B24: =паспорт!S28 -> 38.33 | C24: 1450.1287 | D24: 1450.1287
A25: 19 | B25: =паспорт!S29 -> 38.33 | C25: 1739.2156 | D25: 1739.2156
A26: 20 | B26: =паспорт!S30 -> 38.33 | C26: 1310.6163 | D26: 1310.6163
A27: 21 | B27: =паспорт!S31 -> 38.33 | C27: 987.0622 | D27: 987.0622
A28: 22 | B28: =паспорт!S32 -> 38.35 | C28: 852.3723 | D28: 852.3723
A29: 23 | B29: =паспорт!S33 -> 38.35 | C29: 699.1735 | D29: 699.1735
A30: 24 | B30: =паспорт!S34 -> 38.35 | C30: 637.9705 | D30: 637.9705
A31: 25 | B31: =паспорт!S35 -> 38.35 | C31: 551.5238 | D31: 551.5238
A32: 26 | B32: =паспорт!S36 -> 38.35 | C32: 501.2039 | D32: 501.2039
A33: 27 | B33: =паспорт!S37 -> 38.35 | C33: 574.1382 | D33: 574.1382
A34: 28 | B34: =паспорт!S38 -> 38.35 | C34: 566.0749 | D34: =SUM(C34:C34) -> 566.0749
A35: 29 | B35: =паспорт!S39 -> 38.25 | C35: 445.3359 | D35: =SUM(C35:C35) -> 445.3359
A36: 30 | B36: =паспорт!S40 -> 38.25 | C36: 457.4496 | D36: =SUM(C36:C36) -> 457.4496
A37: 31 | B37: =паспорт!S41 -> 38.25 | C37: 475.017 | D37: =SUM(C37:C37) -> 475.017
A38: Загальний обсяг газу, м3 | C38: =SUM(C7:C37) -> 30795.6754 | D38: =SUM(D7:D37) -> 30795.6754
A39: Енергія, МДж | C39: =SUMPRODUCT(B7:B37,C7:C37) -> 1179499.384 | D39: =SUMPRODUCT(B7:B37,D7:D37) -> 1179499.384
A40: Теплота згоряння (середньозважене значення за місяць), МДж/м³ | C40: =C39/C38 -> 38.30081232 | D40: =D39/D38 -> 38.30081232
A41: Теплота згоряння (середньозважене значення за місяць), ккал/м³ | C41: =C40*238.8459 -> 9147.99199 | D41: =D40*238.8459 -> 9147.99199
A42: Теплота згоряння (середньозважене значення за місяць), кВт*год./м³ | C42: =C40/3.6 -> 10.63911453 | D42: =D40/3.6 -> 10.63911453

Sheet додаток
A2: Додаток до Паспорту фізико-хімічних показників природного газу №173
A4: Область | B4: ГРС, прямий споживач | C4: Cередньозважене значення вищої теплоти згоряння
C5: МДж/м³ | D5: ккал/м³ | E5: кВт*год./м³
A6: Сумська область | B6: ГРС Терешківка | C6: 38.30081232 | D6: 9147.99199 | E6: 10.63911453
A7: Середньозважене значення вищої теплоти згоряння по маршруту № 173 | C7: 38.30081232 | D7: 9147.99199 | E7: 10.63911453
A11: Головний інженер Сумського ЛВУМГ | C11: Соловйов О.Б. | E11: 2017-06-01
A12: Підрозділу підприємства, якому підпорядкована лабораторія | C12: прізвище | D12: підпис | E12: дата
A13: Завідувач ВХАЛ | C13: Журавльова В.В. | E13: 2017-06-01
A14: Лабораторія, де здійснювалось вимірювання газу | C14: прізвище | D14: підпис | E14: дата
A15: Начальник служби МтаГВ | C15: Соловйов А.І. | E15: 2017-06-01
A16: Підрозділу, відповідального за облік газу за маршрутом | C16: прізвище | D16: підпис | E16: дата

Sheet variablesList (hidden)
A1: 3 | B1: x:\gaysin | C1: 10, 11, 24, 25, 127, 128, 132, 180, 207, 215 | D1: x:\
B2: x:\Illinci
B3: x:\Talne

Sheet Лист1
A1: Данные по объекту Счетчик-ТЕРЕШКОВКА (осн.) за 5/17.
A2: День | B2: V, м3 | C2: Vру, м3 | D2: Pабс, кгс/см2 | E2: T, °C | F2: ABC
A3: 1 | B3: 674.7366 | C3: 228 | D3: 3.003 | E3: 15.495 | F3: A
A4: 2 | B4: 672.479 | C4: 226 | D4: 3.004 | E4: 14.465 | F4: A
A5: 3 | B5: 622.1381 | C5: 207 | D5: 3.01 | E5: 12.22 | F5: AB
A6: 4 | B6: 710.7966 | C6: 236 | D6: 3.004 | E6: 11.32 | F6: A
A7: 5 | B7: 794.4788 | C7: 262.0001 | D7: 2.996 | E7: 8.48 | F7: A
A8: 6 | B8: 788.4051 | C8: 264.0001 | D8: 2.998 | E8: 13.046 | F8: A
A9: 7 | B9: 668.1514 | C9: 227 | D9: 2.994 | E9: 16.065 | F9: A
A10: 8 | B10: 789.6396 | C10: 267.0001 | D10: 2.969 | E10: 12.269 | F10: A
A11: 9 | B11: 1024.203 | C11: 335.0001 | D11: 2.959 | E11: 2.619 | F11: A
A12: 10 | B12: 1521.6407 | C12: 487.0001 | D12: 2.96 | E12: -2.345 | F12: AB
A13: 11 | B13: 1607.7732 | C13: 517.0001 | D13: 2.977 | E13: 0.194 | F13: A
A14: 12 | B14: 1918.9789 | C14: 611.0001 | D14: 2.959 | E14: -4.095
A15: 13 | B15: 2468.7556 | C15: 782.0001 | D15: 2.953 | E15: -6.095
A16: 14 | B16: 1912.425 | C16: 612.0001 | D16: 2.97 | E16: -1.877
A17: 15 | B17: 1105.4131 | C17: 361.0001 | D17: 2.993 | E17: 5.944 | F17: AB
A18: 16 | B18: 888.2598 | C18: 296.0001 | D18: 2.983 | E18: 10.565 | F18: A
A19: 17 | B19: 1380.1185 | C19: 445.0001 | D19: 2.975 | E19: 0.526 | F19: A
A20: 18 | B20: 1450.1287 | C20: 462.0001 | D20: 2.994 | E20: -1.081 | F20: A
A21: 19 | B21: 1739.2156 | C21: 557.0001 | D21: 2.971 | E21: -1.873 | F21: A
A22: 20 | B22: 1310.6163 | C22: 429.0001 | D22: 2.968 | E22: 4.27 | F22: A
A23: 21 | B23: 987.0622 | C23: 330.0001 | D23: 2.973 | E23: 10.405 | F23: A
A24: 22 | B24: 852.3723 | C24: 283.0001 | D24: 2.977 | E24: 8.452 | F24: AB
A25: 23 | B25: 699.1735 | C25: 236 | D25: 2.997 | E25: 15.208 | F25: A
A26: 24 | B26: 637.9705 | C26: 216 | D26: 3.002 | E26: 15.898 | F26: A
A27: 25 | B27: 551.5238 | C27: 187 | D27: 3.013 | E27: 17.037 | F27: A
A28: 26 | B28: 501.2039 | C28: 170 | D28: 3.005 | E28: 16.406
A29: 27 | B29: 574.1382 | C29: 194 | D29: 2.994 | E29: 14.069 | F29: A
A30: 28 | B30: 566.0749 | C30: 191 | D30: 3.013 | E30: 15.272 | F30: A
A31: 29 | B31: 445.3359 | C31: 153 | D31: 3.006 | E31: 20.615 | F31: AB
A32: 30 | B32: 457.4496 | C32: 156 | D32: 3.004 | E32: 17.216
A33: 31 | B33: 475.017 | C33: 164 | D33: 3.014 | E33: 21.913 | F33: A
A34: Итого | B34: 30795.6755 | C34: 10091.0018 | D34: 2.988 | E34: 9.116 | F34: AB
